bitfinex/quotes_ETHUSD_20240925
["timestamp","ask_amount","ask_price","bid_price","bid_amount"]
[1727308179901,0.768,2578.8,2578.4,3.87837]
[1727308182973,4.64577,2578.8,2578.3,3.87848]
[1727308186845,4.64577,2578.8,2578.1,3.87882]
[1727308187001,4.64577,2578.8,2578.2,3.87864]
[1727308187427,8.52363,2578.8,2578.2,3.87864]
[1727308187632,3.87842,2578.4,2577.9,3.0]
[1727308187937,3.87842,2578.4,2578.0,3.0]
[1727308187938,0.762,2578.3,2578.0,3.0]
[1727308189502,0.762,2578.3,2577.9,3.87904]
[1727308191418,0.762,2578.3,2578.1,3.87882]
[1727308191643,0.7561,2578.5,2578.1,3.87881]
[1727308192609,0.7561,2578.5,2578.1,0.8291]
[1727308192811,0.7561,2578.5,2578.2,3.87857]
[1727308194318,0.7561,2578.5,2578.1,4.70792]
[1727308195054,0.7561,2578.5,2578.2,3.87864]
[1727308197663,0.8001,2578.7,2578.2,3.87864]
[1727308198422,2.49311677,2578.7,2578.2,3.87864]
[1727308198643,3.87808,2578.6,2578.1,4.70792]
[1727308199964,3.87808,2578.6,2578.1,3.87882]
[1727308200201,7.75628,2578.6,2578.0,3.87888]
[1727308200507,5.57130677,2578.5,2578.0,3.87888]
[1727308200655,0.7605,2578.4,2578.1,3.87882]
[1727308200993,0.7605,2578.7,2578.2,3.87867]
[1727308201157,4.63851,2578.7,2578.2,3.87867]
[1727308201352,4.63851,2578.7,2578.0,3.87887]
[1727308201353,3.87809,2578.6,2578.0,3.87885]
[1727308201550,3.87809,2578.6,2578.1,3.87875]
[1727308202402,3.87809,2578.6,2578.1,3.87878]
[1727308202804,0.8005,2578.9,2578.5,3.8782]
[1727308203097,4.6782,2578.9,2578.3,4.66231]
[1727308203304,4.6782,2578.9,2578.4,3.87836]
[1727308203701,0.8005,2578.9,2578.4,3.87836]
[1727308203916,0.8005,2578.9,2578.4,3.87829]
[1727308204809,8.57740746,2579.3,2578.9,3.87752]
[1727308204810,8.16841624,2579.3,2578.9,3.87752]
[1727308205007,8.16841624,2579.3,2578.8,3.0]
[1727308205008,0.75,2579.3,2578.8,3.0]
[1727308205210,8.50426,2579.3,2578.8,3.0]
[1727308205408,4.62713,2579.3,2578.8,3.0]
[1727308205596,0.75,2579.3,2578.9,3.87754]
[1727308205917,0.75,2579.3,2578.5,3.779]
[1727308205918,0.75,2579.3,2578.8,3.87763]
[1727308206112,0.75,2579.3,2579.0,3.87746]
[1727308206412,0.75,2579.3,2578.8,3.87763]
[1727308206703,0.75,2579.3,2578.8,7.7553]
[1727308206905,0.75,2579.3,2578.8,3.87763]
[1727308207494,0.75,2579.3,2578.8,7.7553]
[1727308207729,0.75,2579.3,2578.8,3.87763]
[1727308208177,0.75,2579.3,2579.0,3.87745]
[1727308208593,0.75,2579.3,2579.0,3.87738]
[1727308208783,0.75,2579.3,2579.0,7.75476]
[1727308208985,0.75,2579.3,2579.0,3.87738]
[1727308209388,0.75,2579.3,2578.9,0.7842]
[1727308209592,0.75,2579.3,2578.9,3.87757]
[1727308210311,0.75,2579.3,2578.8,3.87762]
[1727308210312,0.75,2579.3,2579.0,3.87745]
[1727308212586,0.7642,2579.6,2579.2,3.87707]
[1727308212788,4.64077,2579.6,2579.1,3.8139]
[1727308213312,4.64077,2579.6,2579.1,0.8139]
[1727308213497,4.64077,2579.6,2578.6,3.80577421]
[1727308213498,4.64077,2579.6,2579.0,3.0]
[1727308213705,4.64077,2579.6,2579.1,3.87732]
[1727308214278,8.51744,2579.6,2579.1,3.87732]
[1727308214488,4.64077,2579.6,2579.1,3.87732]
[1727308215617,4.64077,2579.6,2579.0,3.0]
[1727308215618,3.87673,2579.5,2579.0,6.87747]
[1727308215820,8.51748,2579.6,2579.0,6.87747]
[1727308216125,4.64077,2579.6,2579.0,6.87747]
[1727308216334,4.64077,2579.6,2579.1,3.87731]
[1727308220121,4.64077,2579.6,2579.1,7.75455]
[1727308220326,4.64077,2579.6,2579.1,3.87724]
[1727308221224,4.64077,2579.6,2579.1,7.75444]
[1727308221423,4.64077,2579.6,2579.2,3.87706]
[1727308221424,0.7642,2579.6,2579.2,3.87706]
[1727308223983,0.7642,2579.6,2579.3,3.87697]
[1727308224186,0.7642,2579.6,2579.3,3.87694]
[1727308224883,0.7642,2579.6,2579.2,3.87706]
[1727308225082,0.7642,2579.6,2579.2,7.75414]
[1727308225829,0.7642,2579.6,2579.2,3.87706]
[1727308227251,3.97372148,2579.5,2579.0,6.87735]
[1727308227522,0.7603,2579.4,2579.0,6.87735]
[1727308228184,3.87726,2579.2,2578.5,0.7672]
[1727308228523,3.87726,2579.2,2578.8,3.0]
[1727308228524,0.7747,2579.1,2578.8,3.0]
[1727308229230,0.7747,2579.1,2578.7,3.0]
[1727308229391,4.65204,2579.1,2578.7,3.0]
[1727308229719,4.65204,2579.1,2578.4,3.87828]
[1727308229720,0.7919,2578.7,2578.4,3.87828]
[1727308230082,1.69247797,2578.6,2578.2,3.8786]
[1727308230321,0.7919,2578.7,2578.2,3.87857]
[1727308230529,0.7919,2578.7,2578.3,3.87841]
[1727308230957,0.7919,2578.7,2578.4,3.0]
[1727308231635,0.7919,2578.7,2578.4,3.87837]
[1727308231834,0.7919,2578.7,2578.5,3.06886381]
[1727308233368,0.7919,2578.7,2578.5,6.94707381]
[1727308234968,0.8151,2579.0,2578.6,3.87794]
[1727308235266,0.8151,2579.0,2578.8,3.87777]
[1727308235440,0.8151,2579.0,2578.8,7.75545]
[1727308235764,0.8151,2579.0,2578.9,0.06673826]
[1727308237442,2.45817797,2579.2,2578.9,0.06673826]
[1727308238260,2.45817797,2579.2,2578.9,3.94435826]
[1727308239363,1.69247797,2579.0,2578.9,3.94435826]
[1727308240390,0.8164,2579.4,2578.9,4.70665826]
[1727308240576,1.69247797,2579.1,2578.9,4.70656826]
[1727308240967,1.69247797,2579.1,2578.9,7.82179826]
[1727308241369,1.69247797,2579.1,2578.9,3.94426826]
[1727308243259,1.69247797,2579.1,2579.0,3.87747]
[1727308243573,1.69247797,2579.3,2579.0,3.94397243]
[1727308244174,1.69247797,2579.3,2579.0,0.06650243]
[1727308245587,0.8224,2579.6,2579.3,3.8769]
[1727308245784,2.50089421,2579.7,2579.3,3.8769]
[1727308245990,2.50089421,2579.7,2579.4,0.06610939]
[1727308246209,2.50089421,2579.7,2579.3,3.8769]
[1727308246210,1.69247797,2579.5,2579.3,3.8769]
[1727308246619,1.69247797,2579.7,2579.4,3.87687]
[1727308246801,2.50089421,2579.9,2579.6,3.87657]
[1727308246991,1.69247797,2579.7,2579.4,4.65383]
[1727308250228,1.69247797,2579.5,2579.4,4.65383]
[1727308251341,1.69247797,2579.5,2579.2,3.87706]
[1727308251492,0.80841624,2579.8,2579.2,4.68516]
[1727308251493,1.69247797,2579.4,2579.2,4.68516]
[1727308251695,1.69247797,2579.4,2579.2,8.56225]
[1727308252306,1.69247797,2579.4,2579.3,3.87702]
[1727308254379,1.69247797,2579.4,2579.1,3.0]
[1727308254682,4.68237,2579.6,2579.1,6.87731]
[1727308254683,1.69247797,2579.2,2579.1,6.87731]
[1727308255341,1.69247797,2579.2,2579.1,6.94292822]
[1727308256141,1.69247797,2579.2,2579.1,3.06561822]
[1727308256342,0.8057,2579.6,2579.2,3.87717]
[1727308256592,1.69247797,2579.3,2579.2,6.87717]
[1727308257191,1.69247797,2579.3,2579.1,6.87731]
[1727308259512,1.63511624,2579.8,2579.7,3.87641]
[1727308259806,1.69247797,2579.8,2579.7,3.87641]
[1727308259963,1.69247797,2579.8,2579.5,3.87657]
[1727308260159,1.69247797,2579.8,2579.6,3.87652]
[1727308260358,1.69247797,2579.8,2579.5,3.87657]
[1727308260359,1.69247797,2579.8,2579.7,3.87641]
[1727308261603,1.69247797,2579.8,2579.5,7.75319]
[1727308261763,1.69247797,2579.6,2579.5,3.87657]
[1727308261964,1.69247797,2579.6,2579.5,6.87657]
[1727308262963,1.69247797,2579.6,2579.2,3.7921]
[1727308263171,0.8267,2580.0,2579.2,3.0]
[1727308263172,1.69247797,2579.3,2579.2,3.0]
[1727308264271,3.66628035,2579.3,2579.2,6.87717]
[1727308266009,3.66628035,2579.3,2579.0,3.87739]
[1727308266164,0.7881,2579.5,2579.1,3.0]
[1727308266366,3.66628035,2579.2,2579.1,3.0]
[1727308266602,0.8083,2579.1,2578.9,3.87753]
[1727308266799,3.66628035,2579.0,2578.9,3.87753]
[1727308267767,3.66628035,2579.0,2578.9,6.87753]
[1727308268798,0.8083,2579.1,2578.9,6.87753]
[1727308269215,4.42338035,2579.3,2579.0,7.75484]
[1727308269408,4.42338035,2579.3,2579.0,3.87737]
[1727308269964,3.66628035,2579.3,2579.0,7.75473]
[1727308270168,3.87648,2579.7,2579.3,3.87691]
[1727308270169,4.47298035,2579.7,2579.3,3.87691]
[1727308270390,4.47298035,2579.7,2579.1,4.68511]
[1727308270391,12.64729659,2579.9,2579.4,3.0]
[1727308270666,3.66628035,2579.7,2579.4,10.75352]
[1727308270975,3.66628035,2579.7,2579.5,0.06116698]
[1727308271714,3.66628035,2579.7,2579.5,3.93783698]
[1727308272682,4.47888035,2579.9,2579.5,3.93783698]
[1727308272888,5.28199659,2580.1,2579.7,3.87631]
[1727308273090,4.47358035,2580.1,2579.6,4.73593245]
[1727308273308,4.47358035,2580.1,2579.6,4.67577]
[1727308273641,4.47358035,2580.1,2579.7,0.06116698]
[1727308273986,4.47358035,2580.1,2579.7,3.93757698]
[1727308274432,4.47358035,2580.1,2579.8,3.87622]
[1727308274794,4.47358035,2580.1,2579.9,0.06116698]
[1727308275297,3.66628035,2580.0,2579.9,0.06116698]
[1727308275506,3.66628035,2580.0,2579.6,3.87654]
[1727308275708,4.6832,2580.1,2579.9,0.06116698]
[1727308276017,4.6832,2580.1,2580.0,0.06116698]
[1727308276189,4.6832,2580.1,2579.6,3.87654]
[1727308276392,3.66628035,2579.8,2579.6,3.87654]
[1727308277408,3.66628035,2580.0,2579.7,3.87641]
[1727308277833,3.66628035,2580.0,2579.7,3.87631]
[1727308278127,3.66628035,2580.0,2579.7,4.65551]
[1727308279102,3.66628035,2580.0,2579.8,3.87622]
[1727308279433,1.56761624,2580.3,2580.0,3.87589]
[1727308279608,0.7592,2580.3,2580.0,3.87589]
[1727308279958,0.84568534,2580.5,2579.7,1.95749439]
[1727308280152,0.84568534,2580.5,2579.6,7.68230421]
[1727308280153,0.0372691,2580.5,2580.3,3.8754]
[1727308281900,0.0372691,2580.5,2580.3,3.87548]
[1727308282631,0.0372691,2580.5,2580.2,4.63666]
[1727308282831,0.0372691,2580.5,2580.2,0.761]
[1727308283392,0.0372691,2580.5,2580.2,4.63661]
[1727308285237,0.0372691,2580.5,2580.2,0.761]
[1727308285406,0.0372691,2580.5,2580.3,0.06023402]
[1727308285591,0.0372691,2580.5,2580.2,0.761]
[1727308285792,0.0372691,2580.5,2580.4,0.06023402]
[1727308285990,0.0372691,2580.5,2580.2,0.761]
[1727308286190,0.0372691,2580.5,2580.4,0.06023402]
[1727308286393,0.0372691,2580.5,2580.2,0.761]
[1727308286640,0.0372691,2580.5,2580.4,0.06023402]
[1727308286842,0.0372691,2580.5,2580.2,4.63658]
[1727308286993,0.0372691,2580.5,2580.4,3.93559402]
[1727308287199,0.0372691,2580.5,2580.4,3.87536]
[1727308287402,0.0372691,2580.5,2580.4,3.98282435]
[1727308287741,0.0372691,2580.5,2580.4,4.72889402]
[1727308300605,0.0372691,2580.5,2580.4,7.80617633]
[1727308300903,0.0372691,2581.3,2580.4,7.80617633]
[1727308300904,3.66628035,2581.1,2580.5,3.0]
[1727308301190,3.66628035,2581.1,2580.6,6.87503]
[1727308301191,5.03677495,2581.1,2580.6,6.87503]
[1727308301356,0.7921,2581.1,2580.7,3.8749]
[1727308301557,3.66628035,2581.0,2580.6,3.05813363]
[1727308301797,3.66628035,2581.0,2580.6,3.0]
[1727308301999,3.66628035,2581.0,2580.7,0.05805515]
[1727308302667,0.7553,2580.9,2580.7,0.05805515]
[1727308302868,0.7553,2580.9,2580.5,3.87511]
[1727308302869,4.62992,2580.9,2580.6,3.0]
[1727308303099,4.62992,2580.9,2580.8,0.05604982]
[1727308303309,3.87478,2580.8,2580.3,3.0]
[1727308303469,3.66628035,2580.6,2580.3,6.87544]
[1727308303661,3.66628035,2580.8,2580.3,6.87544]
[1727308303867,3.66628035,2580.8,2580.5,3.0]
[1727308304467,0.7954,2580.6,2580.2,3.0]
[1727308304663,1.69023006,2580.4,2580.2,6.87557]
[1727308304864,1.69023006,2580.4,2580.3,3.87551]
[1727308305069,2.48563006,2580.6,2580.3,3.87551]
[1727308305623,2.48373006,2580.8,2580.4,3.87526]
[1727308306066,2.48373006,2580.8,2580.5,3.87519]
[1727308306268,0.7935,2580.8,2580.5,3.87519]
[1727308306804,0.7935,2580.8,2580.3,3.87551]
[1727308307006,0.7935,2580.8,2580.3,3.87536]
[1727308307307,0.7935,2580.8,2580.4,3.87529]
[1727308308914,0.7935,2580.8,2580.5,3.87514]
[1727308309295,0.7935,2580.8,2580.5,7.75024]
[1727308309620,0.7935,2580.8,2580.6,3.87505]
[1727308309913,0.7935,2580.8,2580.5,3.8751]
[1727308310269,0.7935,2580.8,2580.6,3.87503]
[1727308310472,0.7935,2580.8,2580.7,3.87491]
[1727308310696,0.8327,2581.0,2580.5,3.8751]
[1727308310972,3.6620384,2580.9,2580.6,3.87501]
[1727308311172,3.6620384,2580.7,2580.4,3.87527]
[1727308311381,3.8753,2580.5,2579.5,8.24577421]
[1727308311586,4.4676384,2580.0,2579.8,3.87613]
[1727308311870,3.6620384,2579.9,2579.4,7.75364]
[1727308312175,0.8056,2580.0,2579.4,3.87678]
[1727308312378,3.6620384,2579.9,2579.6,3.87653]
[1727308313888,3.6620384,2579.9,2579.6,7.75301]
[1727308314497,3.6620384,2579.9,2579.6,3.87648]
[1727308314697,3.6620384,2579.9,2579.8,3.87626]
[1727308315570,3.6620384,2579.9,2579.8,3.92936109]
[1727308320583,3.6620384,2579.9,2579.8,0.05310109]
[1727308320786,3.6620384,2579.9,2579.8,3.92936109]
[1727308321191,4.4434384,2580.3,2579.8,0.05310109]
[1727308321388,3.6620384,2580.1,2579.9,3.87611]
[1727308321615,4.4434384,2580.3,2580.1,3.87579]
[1727308322001,4.4434384,2580.3,2579.9,7.75208]
[1727308322206,4.4434384,2580.3,2579.9,7.752]
[1727308322490,4.4434384,2580.3,2580.0,0.05405312]
[1727308322721,4.4434384,2580.3,2580.0,3.93000312]
[1727308322917,4.4434384,2580.3,2580.0,0.05405312]
[1727308323135,4.4434384,2580.3,2580.1,3.8758]
[1727308323814,4.4434384,2580.3,2580.2,0.05405312]
[1727308324541,4.4434384,2580.3,2579.9,3.87611]
[1727308324542,5.27533224,2580.3,2579.9,3.87611]
[1727308324839,0.7814,2580.3,2580.2,0.05405312]
[1727308325022,0.7814,2580.3,2579.9,3.87611]
[1727308325215,0.7814,2580.3,2580.0,0.05405312]
[1727308329643,4.65691,2580.3,2580.0,0.05405312]
[1727308330339,1.69109513,2580.1,2580.0,0.05405312]
[1727308332159,1.69109513,2580.1,2579.8,3.87624]
[1727308332323,1.69109513,2579.9,2579.8,3.87624]
[1727308332853,1.69109513,2580.1,2579.9,3.87597]
[1727308333354,1.69109513,2580.1,2580.0,3.87596]
[1727308333919,1.69109513,2580.1,2579.8,3.87624]
[1727308333920,1.69109513,2580.1,2579.9,3.87609]
[1727308334124,1.69109513,2580.1,2579.8,3.87624]
[1727308334661,1.69109513,2580.1,2579.9,3.87599]
[1727308337163,0.7822,2580.5,2580.1,0.7624]
[1727308337392,2.47329513,2580.5,2580.1,4.6381]
[1727308337555,1.69109513,2580.3,2580.1,4.6381]
[1727308338114,1.69109513,2580.3,2580.1,8.5138]
[1727308338256,1.69109513,2580.3,2580.1,8.51383]
[1727308338454,4.44526924,2580.5,2580.1,8.51383]
[1727308338910,4.44526924,2580.5,2580.1,4.6381]
[1727308340259,4.44526924,2580.5,2580.1,8.51383]
[1727308340484,4.44526924,2580.5,2580.1,4.6381]
[1727308340911,4.44526924,2580.5,2580.2,3.87565]
[1727308342318,4.44526924,2580.5,2580.1,4.6381]
[1727308342676,3.66306924,2580.3,2580.1,4.6381]
[1727308343304,3.66306924,2580.3,2580.1,8.51383]
[1727308344280,4.44526924,2580.5,2580.2,3.87558]
[1727308344728,4.44526924,2580.5,2580.3,3.87551]
[1727308344885,3.66306924,2580.5,2580.3,3.87551]
[1727308345086,3.66306924,2580.5,2580.1,4.63812]
[1727308345618,0.7778,2580.7,2580.4,3.87535]
[1727308345791,4.44086924,2580.7,2580.4,3.87535]
[1727308346090,4.44086924,2580.7,2580.3,3.87541]
[1727308346284,4.44086924,2580.7,2580.4,0.05200757]
[1727308346485,4.44086924,2580.7,2580.3,3.87541]
[1727308346723,4.44086924,2580.7,2580.4,0.05200757]
[1727308346909,4.44086924,2580.7,2580.3,3.87541]
[1727308347111,4.44086924,2580.7,2580.4,0.05200757]
[1727308347304,8.31578924,2580.7,2580.2,3.87564]
[1727308347621,8.31578924,2580.7,2580.1,4.63811]
[1727308347622,3.66306924,2580.4,2580.3,0.05200757]
[1727308347805,4.45166924,2580.4,2580.3,0.05200757]
[1727308348009,4.45166924,2580.4,2580.0,3.0]
[1727308348230,0.7886,2580.4,2580.3,0.05198795]
[1727308348393,0.7886,2580.4,2580.0,3.0]
[1727308348582,4.45166924,2580.4,2580.0,6.87587]
[1727308348779,4.45166924,2580.4,2580.1,0.05166425]
[1727308349017,3.66306924,2580.2,2580.1,0.05166425]
[1727308349418,3.66306924,2580.2,2579.9,10.75208]
[1727308349725,3.66306924,2580.2,2580.1,0.05166425]
[1727308349934,0.7886,2580.4,2580.1,3.87581]
[1727308350230,0.7685,2580.6,2580.3,3.87542]
[1727308350413,3.66306924,2580.7,2580.3,7.75085]
[1727308350584,3.66306924,2580.7,2580.3,3.87542]
[1727308350784,3.66306924,2580.7,2580.4,0.05166425]
[1727308351126,1.57691624,2580.8,2580.5,3.8752]
[1727308351127,0.7685,2580.8,2580.5,3.8752]
[1727308351488,0.7685,2580.8,2580.6,0.05166425]
[1727308351916,4.47148548,2580.9,2580.6,3.92670425]
[1727308352100,3.66306924,2580.9,2580.6,3.92665425]
[1727308352299,3.66306924,2580.9,2580.6,0.05166425]
[1727308352524,3.66306924,2580.9,2580.6,3.92670425]
[1727308353413,3.66306924,2580.9,2580.6,0.05166425]
[1727308354140,0.80841624,2581.0,2580.6,0.05166425]
[1727308354321,4.47148548,2581.1,2580.7,3.87491]
[1727308354524,3.66306924,2581.1,2580.7,3.87491]
[1727308354730,3.66306924,2581.1,2580.8,0.05166425]
[1727308355246,4.47148548,2581.1,2580.8,0.05166425]
[1727308355401,3.66306924,2581.1,2580.8,0.05166425]
[1727308356213,4.47148548,2581.1,2580.8,0.05166425]
[1727308356442,3.66306924,2581.1,2580.8,0.05166425]
[1727308359440,3.66306924,2581.1,2580.6,3.0]
[1727308359646,3.66306924,2581.1,2580.9,0.05166425]
[1727308359805,3.66306924,2581.1,2580.6,6.87496]
[1727308360005,3.66306924,2581.1,2581.0,0.05122299]
[1727308360243,3.66306924,2581.1,2580.6,6.87496]
[1727308360603,3.66306924,2581.1,2580.7,0.05122299]
[1727308364323,1.68999432,2580.9,2580.7,0.05122299]
[1727308365721,0.84568534,2581.3,2580.7,0.12850103]
[1727308365953,1.68999432,2581.2,2580.9,3.8745]
[1727308366260,0.0372691,2581.3,2580.8,3.7774]
[1727308366261,1.68999432,2581.0,2580.8,3.7774]
[1727308367284,1.68999432,2581.0,2580.8,7.65206]
[1727308367596,1.68999432,2581.2,2580.8,7.65206]
[1727308369462,1.68999432,2581.0,2580.8,7.65206]
[1727308370561,1.68999432,2581.2,2580.8,7.65206]
[1727308370990,1.68999432,2581.0,2580.8,3.7774]
[1727308371502,1.68999432,2581.0,2580.7,3.0]
[1727308371864,1.68999432,2581.0,2580.9,3.0]
[1727308372095,1.68999432,2581.0,2580.7,6.87489]
[1727308374405,0.8197,2581.2,2580.7,6.87489]
[1727308374602,0.8197,2581.2,2580.9,3.0]
[1727308375393,0.8197,2581.2,2580.6,3.87494]
[1727308375394,0.8197,2581.2,2580.7,3.0]
[1727308375599,0.8197,2581.2,2581.0,0.04951703]
[1727308375904,0.8197,2581.2,2580.7,3.0]
[1727308376198,0.0372691,2581.3,2580.9,7.68014]
[1727308376562,0.0372691,2581.3,2580.9,3.8056]
[1727308376858,0.0372691,2581.3,2581.0,0.04951703]
[1727308380001,0.8308691,2581.3,2581.0,0.04951703]
[1727308381361,7.03442676,2581.3,2581.0,0.04951703]
[1727308381707,3.87418,2581.2,2580.7,3.0]
[1727308381875,3.87418,2581.2,2581.1,0.0494582]
[1727308382077,0.8308691,2581.3,2580.9,3.0]
[1727308382609,0.8308691,2581.3,2581.0,0.0494582]
[1727308385520,0.8308691,2581.3,2581.1,0.0494582]
[1727308385894,0.8308691,2581.3,2581.2,0.0494582]
[1727308386093,0.8308691,2581.3,2580.9,3.87448]
[1727308386293,0.8308691,2581.3,2581.0,0.0494582]
[1727308387597,0.8308691,2581.3,2581.0,3.9238382]
[1727308387831,0.0372691,2581.3,2581.0,3.9238382]
[1727308388124,0.0372691,2581.3,2581.1,3.87431]
[1727308388432,0.0372691,2581.3,2581.2,0.04779006]
[1727308389101,0.0372691,2581.3,2581.0,3.95170245]
[1727308389303,0.0372691,2581.3,2581.1,3.92207006]
[1727308389740,0.0372691,2581.3,2581.2,4.64316]
[1727308389892,0.0372691,2581.3,2581.2,7.64316]
[1727308390293,0.0372691,2581.3,2581.2,7.69080313]
[1727308391407,0.0372691,2581.3,2581.2,3.81664313]
[1727308393997,0.0372691,2581.3,2581.2,3.89386771]
[1727308394217,0.0372691,2581.3,2581.2,3.81664313]
[1727308395506,0.0372691,2581.3,2581.2,7.69080313]
[1727308396401,0.0372691,2581.3,2581.2,3.81664313]
[1727308396607,0.0372691,2581.3,2581.2,0.81664313]
[1727308397436,4.6838791,2581.3,2581.2,0.04764313]
[1727308397799,4.6838791,2581.3,2580.7,8.83196613]
[1727308398110,4.6838791,2581.3,2580.8,0.84888092]
[1727308398310,4.6838791,2581.3,2580.8,0.04718275]
[1727308398633,6.33705432,2581.0,2580.8,0.04718275]
[1727308398936,0.7726,2581.0,2580.5,4.62962]
[1727308399143,0.7726,2581.0,2580.6,4.76822096]
[1727308399436,1.62918534,2581.3,2580.8,3.87476]
[1727308399681,0.8207691,2581.3,2580.9,0.7528]
[1727308399794,4.6948091,2581.3,2580.9,0.7528]
[1727308399998,4.6948091,2581.3,2581.0,0.04743742]
[1727308400303,0.8207691,2581.3,2581.0,0.04743742]
[1727308403601,0.0372691,2581.3,2581.0,0.04743742]
[1727308403826,0.0372691,2581.3,2581.0,3.92185742]
[1727308404028,0.0372691,2581.3,2581.0,4.24642892]
[1727308405737,0.0372691,2581.3,2581.1,0.07723446]
[1727308406101,0.0372691,2581.3,2581.0,3.32452156]
[1727308406301,0.0372691,2581.3,2581.0,0.32452156]
[1727308406503,0.0372691,2581.3,2581.1,0.03727263]
[1727308406728,0.0372691,2581.3,2581.1,0.36179419]
[1727308406945,0.0372691,2581.3,2581.2,0.04743742]
[1727308407925,0.0372691,2581.3,2581.2,0.37195898]
[1727308408134,0.0372691,2581.3,2581.2,4.24611898]
[1727308408324,0.0372691,2581.3,2581.2,3.92159742]
[1727308408725,0.0372691,2581.3,2581.2,0.04743742]
[1727308409038,0.0372691,2581.3,2581.1,4.19876458]
[1727308409212,0.0372691,2581.3,2581.2,0.04758435]
[1727308409660,0.0372691,2581.3,2581.2,0.37210164]
[1727308410640,0.0372691,2581.3,2581.2,8.05646164]
[1727308410842,0.0372691,2581.3,2581.2,7.73194435]
[1727308411014,0.0372691,2581.3,2581.2,8.05646164]
[1727308411215,0.0372691,2581.3,2581.2,1.18230164]
[1727308411532,0.0372691,2581.3,2581.2,1.21497976]
[1727308411710,0.0372691,2581.3,2581.2,1.24137526]
[1727308412157,0.0372691,2581.3,2581.2,1.24135879]
[1727308412517,0.0372691,2581.3,2581.2,1.2413583]
[1727308413129,0.0372691,2581.3,2581.2,0.9168415]
[1727308413349,0.0372691,2581.3,2581.2,1.24135]
[1727308413556,0.0372691,2581.3,2581.2,4.5658585]
[1727308414153,0.0372691,2581.3,2581.2,4.50680135]
[1727308414363,0.0372691,2581.3,2581.2,4.56583907]
[1727308414532,0.0372691,2581.3,2581.2,5.36782126]
[1727308414852,0.0372691,2581.3,2581.2,9.24198126]
[1727308415014,0.0372691,2581.3,2581.2,9.18294354]
[1727308415464,0.0372691,2581.3,2581.2,5.30878354]
[1727308415662,0.0372691,2581.3,2581.2,5.38600662]
[1727308415857,0.0372691,2581.3,2581.2,5.30878354]
[1727308416019,0.0372691,2581.3,2581.2,9.18290753]
[1727308416732,0.0372691,2581.3,2581.2,9.18284518]
[1727308417116,0.0372691,2581.3,2581.2,8.38092534]
[1727308417322,0.0372691,2581.3,2581.2,9.18284005]
[1727308418960,0.0372691,2581.3,2581.2,8.38092534]
[1727308419198,0.0372691,2581.3,2581.2,9.18278312]
[1727308419461,0.0372691,2581.3,2581.2,8.85831063]
[1727308419627,0.0372691,2581.3,2581.2,9.18261905]
[1727308419825,0.0372691,2581.3,2581.2,9.1823294]
[1727308420438,0.0372691,2581.3,2581.2,8.8578209]
[1727308421353,0.0372691,2581.3,2581.2,1.98368907]
[1727308421554,0.8491691,2581.3,2581.2,0.37189277]
[1727308421861,0.0372691,2581.3,2581.2,0.04758435]
[1727308422286,0.0372691,2581.3,2581.2,0.32430842]
[1727308422487,0.0372691,2581.3,2581.2,0.37150097]
[1727308422792,0.0372691,2581.3,2581.2,0.37158356]
[1727308426399,0.0372691,2581.3,2581.2,0.04719255]
[1727308426549,0.0372691,2581.3,2581.2,0.37120219]
[1727308426972,0.0372691,2581.3,2581.2,5.04621699]
[1727308427292,0.0372691,2581.3,2581.2,8.93063524]
[1727308427453,0.0372691,2581.3,2581.2,10.05497573]
[1727308427657,0.0372691,2581.3,2581.2,10.05463319]
[1727308427971,0.0372691,2581.3,2581.2,10.05477046]
[1727308429391,0.0372691,2581.3,2581.2,10.05457121]
[1727308429563,0.0372691,2581.3,2581.2,9.73056157]
[1727308429906,0.0372691,2581.3,2581.2,8.85335224]
[1727308430199,0.0372691,2581.3,2581.2,10.05453044]
[1727308430362,0.0372691,2581.3,2581.2,9.73053436]
[1727308431173,0.0372691,2581.3,2581.2,9.73066001]
[1727308431377,0.0372691,2581.3,2581.2,9.73066034]
[1727308431707,0.0372691,2581.3,2581.2,8.52935616]
[1727308432194,0.0372691,2581.3,2581.2,9.7306805]
[1727308434121,0.0372691,2581.3,2581.2,7.72855255]
[1727308434301,0.0372691,2581.3,2581.2,9.73071727]
[1727308435292,0.0372691,2581.3,2581.2,9.73075679]
[1727308435991,0.0372691,2581.3,2581.2,5.85659679]
[1727308436190,0.0372691,2581.3,2581.2,5.04940392]
[1727308436421,0.0372691,2581.3,2581.2,0.04719255]
[1727308436642,0.0372691,2581.3,2581.0,5.00711969]
[1727308436643,0.0372691,2581.3,2581.0,8.88149969]
[1727308436915,0.0372691,2581.3,2581.2,0.04703586]
[1727308437116,0.0372691,2581.3,2581.2,0.80106409]
[1727308437417,0.0372691,2581.3,2581.2,0.84799573]
[1727308437721,0.0372691,2581.3,2581.2,1.60209573]
[1727308437918,0.0372691,2581.3,2581.2,0.80113586]
[1727308438428,0.0372691,2581.3,2581.2,1.67942447]
[1727308438726,0.0372691,2581.3,2581.2,1.67944153]
[1727308438923,0.0372691,2581.3,2581.2,0.87836186]
[1727308439124,0.0372691,2581.3,2581.2,1.67956178]
[1727308439279,0.0372691,2581.3,2581.2,0.87836186]
[1727308439483,0.0372691,2581.3,2581.2,8.47649988]
[1727308439731,0.0372691,2581.3,2581.2,10.4839807]
[1727308440014,0.0372691,2581.3,2581.2,9.67820649]
[1727308440215,0.0372691,2581.3,2581.2,10.88796921]
[1727308440416,0.0372691,2581.3,2581.2,9.67820649]
[1727308441356,0.0372691,2581.3,2581.2,10.88796921]
[1727308441555,0.0372691,2582.1,2581.8,3.87326]
[1727308441844,0.0372691,2582.1,2581.6,7.66665]
[1727308441845,0.0372691,2582.1,2581.9,0.04687918]
[1727308442212,0.0372691,2582.1,2582.0,7.63596]
[1727308442418,0.0372691,2582.1,2582.0,10.91021567]
[1727308442714,0.0372691,2582.1,2582.0,10.50413254]
[1727308442921,0.0372691,2582.8,2582.5,3.87218]
[1727308443141,0.0372691,2582.8,2582.6,3.0]
[1727308443450,0.0372691,2582.8,2582.6,0.04628192]
[1727308443751,0.0372691,2582.8,2582.6,3.04628192]
[1727308444855,0.0372691,2582.8,2582.6,6.91829192]
[1727308445264,0.0372691,2582.8,2582.6,6.99539772]
[1727308445419,0.0372691,2582.8,2582.7,3.87191]